bitfinex/quotes_BTCUSD_20250920
["timestamp","ask_amount","ask_price","bid_price","bid_amount"]
[1758340987528,0.37996514,115640.0,115630.0,0.53636516]
[1758340987745,0.69836059,115640.0,115630.0,0.56113516]
[1758340987973,0.37485514,115640.0,115630.0,0.88786061]
[1758340988206,0.67236277,115640.0,115630.0,0.29625516]
[1758340991545,0.34885732,115640.0,115630.0,0.29625516]
[1758340991750,0.67236277,115640.0,115630.0,0.29625516]
[1758340992181,0.34885732,115640.0,115630.0,0.29625516]
[1758340992383,0.67236277,115640.0,115630.0,0.29625516]
[1758340992803,0.34885732,115640.0,115630.0,0.29625516]
[1758340993006,0.67236277,115640.0,115630.0,0.29625516]
[1758340994172,0.67236277,115640.0,115630.0,0.56435516]
[1758340997926,0.34,115640.0,115630.0,0.88786061]
[1758340999052,0.37475756,115650.0,115640.0,0.17295053]
[1758340999294,0.69865516,115650.0,115640.0,0.5296802]
[1758340999511,0.72465258,115650.0,115640.0,0.5296802]
[1758340999734,0.40114713,115650.0,115640.0,0.5296802]
[1758340999951,0.72465258,115650.0,115640.0,0.5296802]
[1758341000172,0.72465258,115650.0,115640.0,0.7977802]
[1758341000395,0.72760258,115650.0,115640.0,0.7997802]
[1758341004728,0.72760258,115650.0,115640.0,0.7997002]
[1758341005980,0.72751244,115650.0,115640.0,0.7997002]
[1758341008858,0.72672444,115650.0,115640.0,0.7997002]
[1758341009588,0.72672444,115650.0,115640.0,0.5283202]
[1758341009820,0.72672444,115650.0,115640.0,0.7975602]
[1758341010394,0.72672444,115650.0,115640.0,0.5283202]
[1758341010609,0.72672444,115650.0,115640.0,0.7976002]
[1758341014115,1.05013975,115650.0,115640.0,0.5283202]
[1758341014328,0.72672444,115650.0,115640.0,0.7976402]
[1758341014813,1.05013975,115650.0,115640.0,0.7976402]
[1758341015434,1.0770485,115650.0,115640.0,0.7976402]
[1758341019985,1.24998408,115650.0,115640.0,0.5283202]
[1758341020189,1.22915234,115650.0,115640.0,0.35536967]
[1758341020770,1.2539916,115650.0,115640.0,0.35536967]
[1758341022962,1.5232716,115650.0,115640.0,0.35536967]
[1758341023404,1.49843234,115650.0,115640.0,0.35536967]
[1758341023869,1.49843234,115650.0,115640.0,0.08726967]
[1758341029005,1.22915234,115650.0,115640.0,0.08726967]
[1758341029212,1.49839234,115650.0,115640.0,0.08726967]
[1758341033047,1.5232316,115650.0,115640.0,0.08726967]
[1758341038264,1.5232316,115650.0,115640.0,0.002]
[1758341040346,1.5232316,115650.0,115640.0,0.001]
[1758341040490,0.17295053,115640.0,115630.0,0.17296527]
[1758341040703,0.34,115630.0,115620.0,0.44981018]
[1758341041085,0.34,115630.0,115620.0,0.47649018]
[1758341041086,0.66341531,115630.0,115620.0,0.47649018]
[1758341041703,0.68941742,115630.0,115620.0,0.20839018]
[1758341041857,0.68941742,115630.0,115620.0,0.21039018]
[1758341042070,0.68941742,115630.0,115620.0,0.29565985]
[1758341042480,0.68941742,115630.0,115620.0,0.30065985]
[1758341043292,0.68941742,115630.0,115620.0,0.30366985]
[1758341047513,0.68941742,115630.0,115620.0,0.57176985]
[1758341049426,0.68941742,115630.0,115620.0,0.56875985]
[1758341055376,0.69139742,115630.0,115620.0,0.56875985]
[1758341058513,0.86436291,115630.0,115620.0,0.56011083]
[1758341058708,0.86757291,115630.0,115620.0,0.53343083]
[1758341058898,0.89166291,115630.0,115620.0,0.53343083]
[1758341059308,0.89166291,115630.0,115620.0,0.26533083]
[1758341062458,0.71869742,115630.0,115620.0,0.26533083]
[1758341062886,0.89166291,115630.0,115620.0,0.26533083]
[1758341065453,0.71869742,115630.0,115620.0,0.26533083]
[1758341065893,0.71885622,115630.0,115620.0,0.26533083]
[1758341066386,0.71885622,115630.0,115620.0,0.26738083]
[1758341066587,0.39207211,115630.0,115620.0,0.26738083]
[1758341066813,0.71564622,115630.0,115620.0,0.29150083]
[1758341066967,0.69155622,115630.0,115620.0,0.29150083]
[1758341069491,0.69155622,115630.0,115620.0,0.56054083]
[1758341071418,0.71603622,115630.0,115620.0,0.56054083]
[1758341076520,0.71921622,115630.0,115620.0,0.56054083]
[1758341077104,0.71921622,115630.0,115620.0,0.53642083]
[1758341089815,0.71921622,115630.0,115620.0,0.53437083]
[1758341090877,0.89218171,115630.0,115620.0,0.53437083]
[1758341094463,0.68957622,115630.0,115620.0,0.56054083]
[1758341097885,0.69155622,115630.0,115620.0,0.56054083]
[1758341100091,0.71528622,115630.0,115620.0,0.56054083]
[1758341104676,0.71837622,115630.0,115620.0,0.53642083]
[1758341109456,0.71837622,115630.0,115620.0,0.53433083]
[1758341117385,0.71837622,115630.0,115620.0,0.53630083]
[1758341125973,0.71835199,115630.0,115620.0,0.53630083]
[1758341131775,0.39480211,115630.0,115620.0,0.53630083]
[1758341132081,0.71526199,115630.0,115620.0,0.53630083]
[1758341132509,0.68955199,115630.0,115620.0,0.55915083]
[1758341135182,0.68951198,115630.0,115620.0,0.55915083]
[1758341135398,0.69148198,115630.0,115620.0,0.55915083]
[1758341138035,0.71543198,115630.0,115620.0,0.55915083]
[1758341143836,0.71860198,115630.0,115620.0,0.55915083]
[1758341145881,0.71860198,115630.0,115620.0,0.53630083]
[1758341156403,0.71860198,115630.0,115620.0,0.53433083]
[1758341166195,0.3659621,115630.0,115620.0,0.53966083]
[1758341166401,0.3659621,115630.0,115620.0,0.56230083]
[1758341166818,0.02600211,115630.0,115620.0,0.56230083]
[1758341172058,0.02600211,115630.0,115620.0,0.83040083]
[1758341179710,0.68998988,115640.0,115630.0,0.17296549]
[1758341179923,0.71599032,115640.0,115630.0,0.25823516]
[1758341180142,0.71812032,115640.0,115630.0,0.25823516]
[1758341181419,0.71812032,115640.0,115630.0,0.25923516]
[1758341182209,0.71812032,115640.0,115630.0,0.26023516]
[1758341188001,1.04153918,115640.0,115630.0,0.26023516]
[1758341201601,0.39457044,115640.0,115630.0,0.26023516]
[1758341201859,0.36600044,115640.0,115630.0,0.85697953]
[1758341202033,0.61689171,115650.0,115640.0,0.17295053]
[1758341202261,0.67359608,115650.0,115640.0,0.5517802]
[1758341202477,0.72564294,115650.0,115640.0,0.5292502]
[1758341203958,0.72764294,115650.0,115640.0,0.5292502]
[1758341207823,0.72764294,115650.0,115640.0,0.7973502]
[1758341208026,0.72764294,115650.0,115640.0,0.7952402]
[1758341208238,0.72764294,115650.0,115640.0,0.5263202]
[1758341208450,0.72764294,115650.0,115640.0,0.7952002]
[1758341209574,0.72764294,115650.0,115640.0,0.5263202]
[1758341209809,0.72764294,115650.0,115640.0,0.7952002]
[1758341221853,0.72764294,115650.0,115640.0,0.5263202]
[1758341222280,0.72764294,115650.0,115640.0,0.7952002]
[1758341222945,0.72764294,115650.0,115640.0,0.5263202]
[1758341223259,0.72764294,115650.0,115640.0,0.7952002]
[1758341226638,0.72764294,115650.0,115640.0,0.5263202]
[1758341226835,0.72764294,115650.0,115640.0,0.7951602]
[1758341228843,0.40415857,115650.0,115640.0,0.7951602]
[1758341229069,0.72441294,115650.0,115640.0,0.8213202]
[1758341229312,0.70159294,115650.0,115640.0,0.8213202]
[1758341229972,0.72501294,115650.0,115640.0,0.8213202]
[1758341232081,0.72820294,115650.0,115640.0,0.8213202]
[1758341232447,0.72820294,115650.0,115640.0,0.7972002]
[1758341234833,0.72820294,115650.0,115640.0,0.8213202]
[1758341236003,0.72501294,115650.0,115640.0,0.8213202]
[1758341237963,0.70159294,115650.0,115640.0,0.8213202]
[1758341239107,0.72501294,115650.0,115640.0,0.8213202]
[1758341243075,0.72820294,115650.0,115640.0,0.8213202]
[1758341244412,0.72820294,115650.0,115640.0,0.7972002]
[1758341247933,0.72815728,115650.0,115640.0,0.7972002]
[1758341252062,0.72815728,115650.0,115640.0,0.5283602]
[1758341252263,0.72815728,115650.0,115640.0,0.7972002]
[1758341252487,0.72815728,115650.0,115640.0,0.7951602]
[1758341255698,0.40471857,115650.0,115640.0,0.7951602]
[1758341255909,0.72815728,115650.0,115640.0,0.7972102]
[1758341257350,0.72815728,115650.0,115640.0,0.8212002]
[1758341259910,0.72815728,115650.0,115640.0,0.8191502]
[1758341260089,0.72815728,115650.0,115640.0,0.7951602]
[1758341261693,0.72815728,115650.0,115640.0,0.7952402]
[1758341262873,0.72815728,115650.0,115640.0,0.7952002]
[1758341263329,0.72815728,115650.0,115640.0,0.5263202]
[1758341263542,0.72815728,115650.0,115640.0,0.7952002]
[1758341264174,0.73423363,115650.0,115640.0,0.7952002]
[1758341268389,0.90716921,115650.0,115640.0,0.7952002]
[1758341268570,0.73423363,115650.0,115640.0,0.7952002]
[1758341274803,0.70548363,115650.0,115640.0,0.7972502]
[1758341275010,0.70548363,115650.0,115640.0,0.8244802]
[1758341278878,0.70548363,115650.0,115640.0,0.8212402]
[1758341279108,0.70548229,115650.0,115640.0,0.8212402]
[1758341280539,0.38204358,115650.0,115640.0,0.8212402]
[1758341280797,0.70548229,115650.0,115640.0,0.8212402]
[1758341281037,0.70548229,115650.0,115640.0,0.8242102]
[1758341281473,0.69940728,115650.0,115640.0,0.8212402]
[1758341282657,0.69740728,115650.0,115640.0,0.8242102]
[1758341282862,0.69740728,115650.0,115640.0,0.8252102]
[1758341284361,0.69740728,115650.0,115640.0,0.8262102]
[1758341285024,0.69740728,115650.0,115640.0,0.8022202]
[1758341285269,0.69740728,115650.0,115640.0,0.8255302]
[1758341288821,0.69944728,115650.0,115640.0,0.8225602]
[1758341289277,0.69740728,115650.0,115640.0,0.8225602]
[1758341291026,0.69944728,115650.0,115640.0,0.7992502]
[1758341291235,0.72247728,115650.0,115640.0,0.8225602]
[1758341292047,0.72542728,115650.0,115640.0,0.7972002]
[1758341292673,0.72542728,115650.0,115640.0,0.7992502]
[1758341294223,0.72542728,115650.0,115640.0,0.8225602]
[1758341294453,0.69944728,115650.0,115640.0,0.8225602]
[1758341294802,0.72247728,115650.0,115640.0,0.8225602]
[1758341296281,0.72542728,115650.0,115640.0,0.8225602]
[1758341297464,0.72542728,115650.0,115640.0,0.7972002]
[1758341302418,0.69944728,115650.0,115640.0,0.8225602]
[1758341303908,0.37600857,115650.0,115640.0,0.8225602]
[1758341304334,0.69944728,115650.0,115640.0,0.8225602]
[1758341305377,0.72542728,115650.0,115640.0,0.7992502]
[1758341305791,0.72542728,115650.0,115640.0,0.8241702]
[1758341307044,0.72247728,115650.0,115640.0,0.8241702]
[1758341307933,0.72246992,115650.0,115640.0,0.8241702]
[1758341310721,0.72540992,115650.0,115640.0,0.8241702]
[1758341311870,0.72540992,115650.0,115640.0,0.7992502]
[1758341312478,0.72540992,115650.0,115640.0,0.7972002]
[1758341313614,0.72540992,115650.0,115640.0,0.5283202]
[1758341313833,0.72540992,115650.0,115640.0,0.7971202]
[1758341315191,0.72540992,115650.0,115640.0,0.5283202]
[1758341315417,0.72540992,115650.0,115640.0,0.7971202]
[1758341330621,0.40197857,115650.0,115640.0,0.7971202]
[1758341330816,0.72540992,115650.0,115640.0,0.7971202]
[1758341342176,0.40197857,115650.0,115640.0,0.7971202]
[1758341342382,0.72540992,115650.0,115640.0,0.7992402]
[1758341350633,0.72540992,115650.0,115640.0,0.8220302]
[1758341351072,0.72246992,115650.0,115640.0,0.8220302]
[1758341351495,0.37600857,115650.0,115640.0,0.8220302]
[1758341351684,0.69739992,115650.0,115640.0,0.8220302]
[1758341352510,0.69739992,115650.0,115640.0,0.8252402]
[1758341352709,0.37396857,115650.0,115640.0,0.8024502]
[1758341352915,0.03396857,115650.0,115640.0,1.14867155]
[1758341353080,0.03396857,115650.0,115640.0,0.8252402]
[1758341355686,0.35739992,115650.0,115640.0,0.8252402]
[1758341360174,0.33140306,115650.0,115640.0,0.8252402]
[1758341361495,0.68942672,115660.0,115650.0,0.17293558]
[1758341361671,0.36599537,115660.0,115650.0,0.28311525]
[1758341361871,0.68942672,115660.0,115650.0,0.28311525]
[1758341362076,0.68942672,115660.0,115650.0,0.55121525]
[1758341362709,0.69042672,115660.0,115650.0,0.55121525]
[1758341363110,0.69442672,115660.0,115650.0,0.55121525]
[1758341363982,0.69042672,115660.0,115650.0,0.55121525]
[1758341364188,0.69142672,115660.0,115650.0,0.55121525]
[1758341364619,0.70004801,115660.0,115650.0,0.55121525]
[1758341365079,1.02347936,115660.0,115650.0,0.55121525]
[1758341365254,0.70004801,115660.0,115650.0,0.55121525]
[1758341365458,0.69904801,115660.0,115650.0,0.55121525]
[1758341367647,1.05093936,115660.0,115650.0,0.52842525]
[1758341368220,1.05093936,115660.0,115650.0,0.55311525]
[1758341369889,0.72743872,115660.0,115650.0,0.55311525]
[1758341372100,0.72743872,115660.0,115650.0,0.82183525]
[1758341372551,0.72743872,115660.0,115650.0,0.79714525]
[1758341372809,0.72743872,115660.0,115650.0,0.52842525]
[1758341372952,0.72743872,115660.0,115650.0,0.79714525]
[1758341374941,0.06407666,115660.0,115650.0,0.79714525]
[1758341375126,0.72743872,115660.0,115650.0,0.79714525]
[1758341377621,0.72643872,115660.0,115650.0,0.79714525]
[1758341378050,0.72643872,115660.0,115650.0,0.80014525]
[1758341378261,0.72643872,115660.0,115650.0,0.79802525]
[1758341379382,0.72643872,115660.0,115650.0,0.80002525]
[1758341387733,0.72350872,115660.0,115650.0,0.82685525]
[1758341390598,0.69797872,115660.0,115650.0,0.80540525]
[1758341390815,0.37461666,115660.0,115650.0,0.83009525]
[1758341391285,0.69797872,115660.0,115650.0,0.83009525]
[1758341391716,0.69797872,115660.0,115650.0,0.56199525]
[1758341392158,0.37461666,115660.0,115650.0,0.56199525]
[1758341392369,0.69797872,115660.0,115650.0,0.56199525]
[1758341394283,0.69797872,115660.0,115650.0,0.55875525]
[1758341396255,0.69797872,115660.0,115650.0,0.56182525]
[1758341397379,0.69797872,115660.0,115650.0,0.55875525]
[1758341397645,0.69797872,115660.0,115650.0,0.82685525]
[1758341406719,0.37461666,115660.0,115650.0,0.82685525]
[1758341406937,0.69797872,115660.0,115650.0,0.82685525]
[1758341407172,0.69998872,115660.0,115650.0,0.82685525]
[1758341407928,0.72355872,115660.0,115650.0,0.82685525]
[1758341408534,0.69998872,115660.0,115650.0,0.89012957]
[1758341410219,0.69998872,115660.0,115650.0,0.82685525]
[1758341410644,0.72355872,115660.0,115650.0,0.82685525]
[1758341411238,0.72355872,115660.0,115650.0,0.82694625]
[1758341412026,0.69998872,115660.0,115650.0,0.82694625]
[1758341413183,0.72355872,115660.0,115650.0,0.82694625]
[1758341413783,0.69998872,115660.0,115650.0,0.82694625]
[1758341414000,0.69797872,115660.0,115650.0,0.82694625]
[1758341416047,0.69998872,115660.0,115650.0,0.82694625]
[1758341416709,0.69793367,115660.0,115650.0,0.82870625]
[1758341417184,0.34931238,115660.0,115650.0,0.82870625]
[1758341417822,0.32336206,115660.0,115650.0,0.82870625]
[1758341419600,0.33222966,115660.0,115650.0,0.82870625]
[1758341419805,0.33222966,115660.0,115650.0,0.82551625]
[1758341420672,0.35822344,115660.0,115650.0,0.82551625]
[1758341421172,0.35822344,115660.0,115650.0,0.82579625]
[1758341424080,0.03486138,115660.0,115650.0,0.82579625]
[1758341424238,0.35822344,115660.0,115650.0,0.82579625]
[1758341424451,0.03486138,115660.0,115650.0,0.82579625]
[1758341424649,0.35822344,115660.0,115650.0,0.82579625]
[1758341424857,0.36023344,115660.0,115650.0,0.82579625]
[1758341427858,0.38394344,115660.0,115650.0,0.82579625]
[1758341431851,0.70732256,115660.0,115650.0,0.82579625]
[1758341433800,0.70732256,115660.0,115650.0,0.55679625]
[1758341434017,0.71045256,115660.0,115650.0,0.80241625]
[1758341437550,0.71045256,115660.0,115650.0,0.82640625]
[1758341437979,0.71045256,115660.0,115650.0,0.80241625]
[1758341441420,0.71045256,115660.0,115650.0,0.80027625]
[1758341442415,0.71045256,115660.0,115650.0,0.53139625]
[1758341442794,0.71045256,115660.0,115650.0,0.80019625]
[1758341442980,0.71045256,115660.0,115650.0,0.53139625]
[1758341443184,0.71045256,115660.0,115650.0,0.80019625]
[1758341448473,0.71045256,115660.0,115650.0,0.86396363]
[1758341454661,0.71045256,115660.0,115650.0,0.80019625]
[1758341460578,0.71045256,115660.0,115650.0,0.53139625]
[1758341460811,0.71045256,115660.0,115650.0,0.80015625]
[1758341470199,0.71045256,115660.0,115650.0,0.53139625]
[1758341470534,0.71045256,115660.0,115650.0,0.80015625]
[1758341478191,0.71045256,115660.0,115650.0,0.86361871]
[1758341481920,0.71045256,115660.0,115650.0,0.59485871]
[1758341482124,0.71045256,115660.0,115650.0,0.86357871]
[1758341489123,0.71045256,115660.0,115650.0,0.86557871]
[1758341489290,0.68361256,115660.0,115650.0,0.88955871]
[1758341490124,0.68361256,115660.0,115650.0,0.82609625]
[1758341493813,0.3602559,115660.0,115650.0,0.82609625]
[1758341495795,0.3827859,115660.0,115650.0,0.82609625]
[1758341497039,0.05940138,115660.0,115650.0,0.82609625]
[1758341497218,0.4000259,115660.0,115650.0,0.82609625]
[1758341497396,0.3602559,115660.0,115650.0,0.82609625]
[1758341506056,0.03687138,115660.0,115650.0,0.82609625]
[1758341506204,0.3774959,115660.0,115650.0,0.82609625]
[1758341506403,0.3602559,115660.0,115650.0,0.82609625]
[1758341507911,0.3858059,115660.0,115650.0,0.82609625]
[1758341508926,0.05940138,115660.0,115650.0,0.82609625]
[1758341509131,0.4000259,115660.0,115650.0,0.82609625]
[1758341509269,0.3827859,115660.0,115650.0,0.82609625]
[1758341509910,0.3582459,115660.0,115650.0,0.82931625]
[1758341518380,0.3582459,115660.0,115650.0,0.82609625]
[1758341518848,0.3603759,115660.0,115650.0,0.82609625]
[1758341519265,0.3840759,115660.0,115650.0,0.82609625]
[1758341520742,0.3603759,115660.0,115650.0,0.82609625]
[1758341521154,0.03486138,115660.0,115650.0,0.82609625]
[1758341521358,0.3582459,115660.0,115650.0,0.82609625]
[1758341525227,0.3604059,115660.0,115650.0,0.82609625]
[1758341527490,0.3582459,115660.0,115650.0,0.82609625]
[1758341529738,0.3582459,115660.0,115650.0,0.82909625]
[1758341530952,0.3582459,115660.0,115650.0,0.82609625]
[1758341537195,0.3604059,115660.0,115650.0,0.82609625]
[1758341540055,0.3843259,115660.0,115650.0,0.82609625]
[1758341540679,0.3874559,115660.0,115650.0,0.82609625]
[1758341541756,0.06094138,115660.0,115650.0,0.82609625]
[1758341541925,0.4015659,115660.0,115650.0,0.82609625]
[1758341542243,0.3604059,115660.0,115650.0,0.82609625]
[1758341545775,0.3852259,115660.0,115650.0,0.82609625]
[1758341546561,0.3604059,115660.0,115650.0,0.82609625]
[1758341548798,0.3493783,115660.0,115650.0,0.82995625]
[1758341549001,0.3493783,115660.0,115650.0,0.82687625]
[1758341549211,0.36028732,115660.0,115650.0,0.82687625]
[1758341553814,0.68364306,115660.0,115650.0,0.82687625]
[1758341554025,0.70846306,115660.0,115650.0,0.82687625]
[1758341554247,0.71167306,115660.0,115650.0,0.82687625]
[1758341554417,0.71167306,115660.0,115650.0,0.80211625]
[1758341555060,0.71167306,115660.0,115650.0,0.80011625]
[1758341556261,0.0649328,115660.0,115650.0,0.80011625]
[1758341556460,0.72891306,115660.0,115650.0,0.80011625]
[1758341556689,0.71167306,115660.0,115650.0,0.80011625]
[1758341569173,0.71167306,115660.0,115650.0,0.80216625]
[1758341569722,0.71167306,115660.0,115650.0,0.80011625]
[1758341572620,0.71167306,115660.0,115650.0,0.86440913]
[1758341574107,0.0649328,115660.0,115650.0,0.86440913]
[1758341574318,0.72891306,115660.0,115650.0,0.86440913]
[1758341574525,0.71167306,115660.0,115650.0,0.86440913]
[1758341580713,0.71167306,115660.0,115650.0,0.59568913]
[1758341580874,0.71167306,115660.0,115650.0,0.86436913]
[1758341582126,0.71167306,115660.0,115650.0,0.59568913]
[1758341582469,0.71167306,115660.0,115650.0,0.86436913]
[1758341589291,0.68161306,115660.0,115650.0,0.89247913]
[1758341590374,0.68161306,115660.0,115650.0,0.88950913]
[1758341593423,0.68377306,115660.0,115650.0,0.88950913]
[1758341593982,0.70637306,115660.0,115650.0,0.88950913]
[1758341594206,0.70949306,115660.0,115650.0,0.88950913]
[1758341594637,0.70637306,115660.0,115650.0,0.88950913]
[1758341596691,0.70949306,115660.0,115650.0,0.88754913]
[1758341596919,0.70949306,115660.0,115650.0,0.86436913]
[1758341598641,0.70949306,115660.0,115650.0,0.86632913]
[1758341602356,0.70949306,115660.0,115650.0,0.86436913]
[1758341603200,0.70949306,115660.0,115650.0,0.86632913]
[1758341603614,0.70949306,115660.0,115650.0,0.80203625]
[1758341607369,0.38612293,115660.0,115650.0,0.80203625]
[1758341608330,0.38612293,115660.0,115650.0,0.82483625]
[1758341608512,0.38612293,115660.0,115650.0,0.80203625]
[1758341609556,0.0596328,115660.0,115650.0,0.82483625]
[1758341609857,0.37548293,115660.0,115650.0,0.82483625]
[1758341609991,0.35824293,115660.0,115650.0,0.82483625]
[1758341610407,0.0348728,115660.0,115650.0,0.82788625]
[1758341610643,0.37548293,115660.0,115650.0,0.82788625]
[1758341610837,0.35824293,115660.0,115650.0,0.82788625]
[1758341611286,0.0348728,115660.0,115650.0,0.82788625]
[1758341611493,0.37548293,115660.0,115650.0,0.82788625]
[1758341611700,0.35824293,115660.0,115650.0,0.82788625]
[1758341612786,0.35824293,115660.0,115650.0,0.82483625]
[1758341613008,0.36026293,115660.0,115650.0,0.82483625]
[1758341613220,0.35824293,115660.0,115650.0,0.82788625]
[1758341613867,0.35821107,115660.0,115650.0,0.82788625]
[1758341614808,0.35821107,115660.0,115650.0,0.82483625]
[1758341614993,0.0348728,115660.0,115650.0,0.82788625]
[1758341615629,0.02599378,115660.0,115650.0,1.18137642]
[1758341617252,0.02599378,115660.0,115650.0,0.85803815]
[1758341617445,0.02599378,115660.0,115650.0,1.18137642]
[1758341619208,0.02599378,115660.0,115650.0,0.85803815]
[1758341620249,0.02599378,115660.0,115650.0,0.88402976]
[1758341622454,0.02599378,115660.0,115650.0,0.94821884]
[1758341627730,0.02599378,115660.0,115650.0,1.27155711]
[1758341627943,0.34,115670.0,115660.0,0.17292062]
[1758341628180,0.34,115670.0,115660.0,0.55429029]
[1758341628181,0.36599077,115670.0,115660.0,0.55429029]
[1758341629024,0.36599077,115670.0,115660.0,0.55438129]
[1758341629182,0.36703783,115670.0,115660.0,0.55438129]
[1758341630613,0.36703783,115670.0,115660.0,0.55638129]
[1758341631148,0.36603783,115670.0,115660.0,0.55638129]
[1758341631384,0.36603783,115670.0,115660.0,0.55938129]
[1758341636077,0.02603783,115670.0,115660.0,0.55938129]
[1758341646695,0.02603783,115670.0,115660.0,0.55633129]
[1758341648947,0.02603783,115670.0,115660.0,0.55944129]
[1758341651046,0.02603783,115670.0,115660.0,0.56106129]
[1758341651254,0.02603783,115670.0,115660.0,0.64645146]
[1758341651452,4.706e-05,115670.0,115660.0,0.64645146]
[1758341651687,4.706e-05,115670.0,115660.0,0.67243958]
[1758341652075,4.706e-05,115670.0,115660.0,0.67253958]
[1758341652667,4.706e-05,115670.0,115660.0,0.34920131]
[1758341653671,4.706e-05,115670.0,115660.0,0.44268131]
[1758341654310,4.706e-05,115670.0,115660.0,0.44259031]
[1758341655261,4.706e-05,115670.0,115660.0,0.4510874]
[1758341655440,4.706e-05,115670.0,115660.0,0.45133826]
[1758341656289,4.706e-05,115670.0,115660.0,0.44284117]
[1758341656511,4.706e-05,115670.0,115660.0,0.71192117]
[1758341659066,4.706e-05,115670.0,115660.0,0.71188117]
[1758341659501,4.706e-05,115670.0,115660.0,0.44284117]
[1758341659714,4.706e-05,115670.0,115660.0,0.71188117]
[1758341660482,4.706e-05,115670.0,115660.0,0.44284117]
[1758341660728,4.706e-05,115670.0,115660.0,0.70877117]
[1758341661526,4.706e-05,115670.0,115660.0,0.97687117]
[1758341671033,4.706e-05,115670.0,115660.0,0.97679117]
[1758341672835,4.706e-05,115670.0,115660.0,0.97675117]
[1758341674417,4.706e-05,115670.0,115660.0,0.70783117]
[1758341674645,4.706e-05,115670.0,115660.0,0.97675117]
[1758341675110,4.706e-05,115670.0,115660.0,0.70783117]
[1758341675292,4.706e-05,115670.0,115660.0,0.97675117]
[1758341675890,0.32329355,115670.0,115660.0,0.97675117]
[1758341677082,4.706e-05,115670.0,115660.0,0.97675117]
[1758341677557,4.706e-05,115670.0,115660.0,0.70783117]
[1758341677770,0.00214706,115670.0,115660.0,0.97671117]
[1758341679578,0.00214706,115670.0,115660.0,0.70783117]
[1758341679792,0.35146355,115670.0,115660.0,0.68126117]
[1758341680044,0.35146355,115670.0,115660.0,0.92415305]
[1758341680255,0.37745415,115670.0,115660.0,0.92415305]
[1758341680463,0.70070064,115670.0,115660.0,0.92415305]
[1758341680982,0.70070064,115670.0,115660.0,0.92405305]
[1758341687782,0.37745415,115670.0,115660.0,0.92405305]
[1758341689340,0.37745415,115670.0,115660.0,0.92616305]
[1758341689781,0.37745415,115670.0,115660.0,0.94898305]
[1758341690190,0.37442415,115670.0,115660.0,0.94898305]
[1758341690393,0.35138415,115670.0,115660.0,0.94898305]
[1758341691457,0.37442415,115670.0,115660.0,0.94898305]
[1758341691864,0.35138415,115670.0,115660.0,0.94898305]
[1758341693908,0.37442415,115670.0,115660.0,0.94898305]
[1758341694641,0.35138415,115670.0,115660.0,0.94898305]
[1758341701728,0.35138415,115670.0,115660.0,0.68088305]
[1758341703417,0.35138415,115670.0,115660.0,0.58740305]
[1758341721078,0.35138415,115670.0,115660.0,0.85550305]
[1758341721734,0.32539355,115670.0,115660.0,0.85550305]
[1758341725991,0.35038355,115670.0,115660.0,0.85550305]
[1758341726864,0.35038355,115670.0,115660.0,0.58740305]
[1758341728115,0.32539355,115670.0,115660.0,0.58740305]
[1758341729974,0.00214706,115670.0,115660.0,0.58740305]
[1758341730205,0.32539355,115670.0,115660.0,0.58740305]
[1758341730633,0.32539355,115670.0,115660.0,0.31852305]
[1758341730826,0.32539355,115670.0,115660.0,0.58732305]
[1758341734014,0.32539355,115670.0,115660.0,0.31852305]
[1758341734245,0.32539355,115670.0,115660.0,0.58732305]
[1758341735887,0.32543978,115670.0,115660.0,0.58732305]
[1758341737546,0.32543978,115670.0,115660.0,0.56450305]
[1758341738354,0.32543978,115670.0,115660.0,0.58916305]
[1758341738568,0.32543978,115670.0,115660.0,0.58912305]
[1758341738754,0.32543978,115670.0,115660.0,0.85722305]
[1758341747187,0.32543978,115670.0,115660.0,0.58846305]
[1758341747393,0.32543978,115670.0,115660.0,0.85722305]
[1758341748567,0.32543978,115670.0,115660.0,0.58846305]
[1758341748877,0.32543978,115670.0,115660.0,0.85722305]
[1758341749507,0.35042978,115670.0,115660.0,0.85722305]
[1758341753806,0.35348978,115670.0,115660.0,0.85722305]
[1758341754962,0.35042978,115670.0,115660.0,0.85722305]
[1758341756832,0.35042978,115670.0,115660.0,0.58846305]
[1758341757049,0.35042978,115670.0,115660.0,0.85722305]
[1758341758074,0.35365978,115670.0,115660.0,0.85722305]
[1758341761359,0.35365978,115670.0,115660.0,0.83256305]
[1758341763868,0.35365978,115670.0,115660.0,0.84256305]
[1758341764715,0.35365978,115670.0,115660.0,0.86663305]
[1758341765192,0.35365978,115670.0,115660.0,0.84256305]
[1758341768002,0.35365978,115670.0,115660.0,0.83256305]
[1758341768228,0.03036706,115670.0,115660.0,0.83256305]
[1758341768467,0.37089978,115670.0,115660.0,0.56446305]
[1758341768716,0.35365978,115670.0,115660.0,0.56446305]
[1758341774109,0.35365978,115670.0,115660.0,0.56235305]
[1758341774345,0.35365978,115670.0,115660.0,0.83045305]
[1758341774524,0.03036706,115670.0,115660.0,0.83045305]
[1758341774695,0.37089978,115670.0,115660.0,0.83045305]
[1758341774899,0.35365978,115670.0,115660.0,0.83045305]
[1758341781990,0.37965038,115670.0,115660.0,0.83045305]
[1758341788524,0.37965038,115670.0,115660.0,0.56169305]
[1758341788735,0.37965038,115670.0,115660.0,0.80030115]
[1758341790849,0.37965038,115670.0,115660.0,0.53154115]
[1758341791053,0.37965038,115670.0,115660.0,0.80030115]
[1758341797789,0.70305536,115670.0,115660.0,0.80030115]
[1758341801889,0.67483536,115670.0,115660.0,0.80227115]
[1758341802123,0.67273536,115670.0,115660.0,0.82512115]
[1758341802753,0.34938651,115670.0,115660.0,0.82512115]
[1758341806088,0.02603766,115670.0,115660.0,0.82512115]
[1758341806320,0.36662651,115670.0,115660.0,0.82512115]
[1758341806513,0.34938651,115670.0,115660.0,0.82512115]
[1758341807181,0.35145651,115670.0,115660.0,0.82512115]
[1758341807376,0.37447651,115670.0,115660.0,0.82512115]
[1758341808051,0.37757651,115670.0,115660.0,0.80030115]
[1758341808237,0.37757651,115670.0,115660.0,0.80227115]
[1758341808683,0.37757651,115670.0,115660.0,0.80223115]
[1758341810009,0.35145651,115670.0,115660.0,0.80223115]
[1758341810266,0.34938651,115670.0,115660.0,0.82508115]
[1758341811370,0.37447651,115670.0,115660.0,0.82508115]
[1758341811595,0.37757651,115670.0,115660.0,0.80026115]
[1758341811823,0.70092536,115670.0,115660.0,0.80026115]
[1758341812727,0.37757651,115670.0,115660.0,0.80026115]
[1758341816326,0.37757651,115670.0,115660.0,0.80238115]
[1758341827647,0.37757651,115670.0,115660.0,0.53428115]
[1758341829673,0.70092536,115670.0,115660.0,0.53216115]
[1758341830353,0.70092536,115670.0,115660.0,0.26344115]
[1758341830575,0.70188536,115670.0,115660.0,0.53216115]
[1758341833648,0.70188536,115670.0,115660.0,0.80026115]
[1758341834026,0.70188536,115670.0,115660.0,0.53154115]
[1758341834243,0.70188536,115670.0,115660.0,0.80026115]
[1758341834452,0.87479103,115670.0,115660.0,0.53154115]
[1758341834646,0.87479103,115670.0,115660.0,0.80026115]
[1758341839599,0.87479103,115670.0,115660.0,0.53216115]
[1758341844566,1.19081103,115670.0,115660.0,0.26344115]
[1758341844804,1.21479103,115670.0,115660.0,0.53216115]
[1758341845506,1.21479103,115670.0,115660.0,0.80026115]